Cogmind - Beta 16 @@@ ROGUE MODE // 2026.01.24 @ 07:11:55 Player: C4PT41N Result: Destroyed by L-41 Fighter with Axe Performance ------------- Evolutions (3) 1500 Regions Visited (5) 1000 Robots Destroyed (143) 715 Value Destroyed (4694) 4694 Prototype IDs (6) 120 Alien Tech Used (0) 0 Bonus (185) 185 TOTAL SCORE: 8214 Bonus ------- High Alert Combat Kills 185 Cogmind --------- Core Integrity 0/700 Matter 157/300 Energy 150/150 System Corruption 2% Temperature Cool (0) Movement Treading (152) Location -7/Factory Parts ------- > --- POWER (2) -------- Micro Nuclear Core > --- PROPULSION (3) --- Light Treads Advanced Treads > --- UTILITY (5) ------ Improved Heat Sink Improved Heat Sink Improved Power Shielding Improved Power Shielding > --- WEAPON (3) ------- Gauss Rifle Improved Light Cannon > --- INVENTORY (5) ---- Heavy Ion Engine Improved Heat Sink Field Recycling Unit (0) Improved Light Cannon Plasma Cutter Peak State ------------ > --- POWER ------------ Heavy Ion Engine Heavy Ion Engine > --- PROPULSION ------- Light Treads Advanced Treads Advanced Treads > --- UTILITY ---------- Large Storage Unit Matter Filter Hardened Heavy Armor Plating Improved Field Recycling Unit > --- WEAPON ----------- Improved Light Cannon Improved Light Cannon Advanced Assault Cannon > --- INVENTORY -------- Heavy Ion Engine Light Treads Transmission Jammer Improved Propulsion Shielding Light Armor Plating Hardened Light Armor Plating Improved Light Armor Plating Medium Insulated Plating Shield Generator Field Recycling Unit Improved Light Cannon Improved Light Cannon Improved Light Cannon Mining Laser Plasma Cutter [Rating: 41] Favorites ----------- Power Heavy Ion Engine Engine Heavy Ion Engine Power Core Light Nuclear Core Propulsion Advanced Treads Treads Advanced Treads Leg Aluminum Leg Wheel Wheel Utility Large Storage Unit Device Shield Generator Storage Large Storage Unit Processor Signal Interpreter Protection Light Armor Plating Weapon Improved Light Cannon Energy Gun Medium Laser Energy Cannon Beam Cannon Ballistic Gun Gauss Rifle Ballistic Cannon Improved Light Cannon Special Weapon Mining Laser Build | -11 -10 -9 -9 -9 -7 ------- Run | Yrd Mat Mat Sto Rec Fac Slots Evolved 6 | . . 2 . . 4 Power 1 | . . . . . 1 Propulsion 1 | . . . . . 1 Utility 3 | . . 2 . . 1 Weapon 1 | . . . . . 1 Parts Attached 95 | 11 13 21 18 3 29 Power 17 | 2 1 6 1 . 7 Engine 13 | 2 1 6 1 . 3 Core 4 | . . . . . 4 Reactor . | . . . . . . Propulsion 18 | 5 4 5 2 . 2 Treads 11 | 2 . 5 2 . 2 Leg 6 | 2 4 . . . . Wheel 1 | 1 . . . . . Hover . | . . . . . . Flight . | . . . . . . Utility 34 | 2 4 6 5 3 14 Device 18 | 2 1 4 1 2 8 Storage 1 | . 1 . . . . Processor 1 | . . 1 . . . Hackware . | . . . . . . Protection 14 | . 2 1 4 1 6 Artifact . | . . . . . . Weapon 26 | 2 4 4 10 . 6 Energy Gun 2 | 1 . . 1 . . Energy Cannon 2 | . 1 . 1 . . Ballistic Gun 7 | 1 . 1 1 . 4 Ballistic Cannon 13 | . 3 3 5 . 2 Launcher . | . . . . . . Special Weapon 2 | . . . 2 . . Impact Weapon . | . . . . . . Slashing Weapon . | . . . . . . Piercing Weapon . | . . . . . . Special Melee Weapon . | . . . . . . Unidentified Prototypes 4 | . . 3 1 . . Parts Lost 24 | . 1 1 4 . 18 Power 3 | . . . . . 3 Propulsion 3 | . . . 1 . 2 Utility 13 | . 1 1 2 . 9 Weapon 5 | . . . 1 . 4 Highest Loss Streak 4 | . 1 1 1 . 4 To Critical Strikes . | . . . . . . Average Backups 13 | 3 9 13 14 14 13 Power 1 | . . 2 3 2 1 Propulsion 1 | 2 3 1 1 2 . Utility 3 | . 1 3 2 2 6 Weapon 5 | . 2 6 7 7 3 Tool/Special . | . . . . . . Unused Backups 12 | . . 4 1 2 5 Power 2 | . . . 1 1 . Propulsion . | . . . . . . Utility 2 | . . 1 . . 1 Weapon 6 | . . 1 . 1 4 Tool/Special 2 | . . 2 . . . Average Slot Usage (%) 97 | . 99 99 99 100 94 Engine 11 | . 14 10 11 11 11 Treads 20 | . 10 20 21 22 22 Leg 1 | . 17 1 . . . Device 12 | . 12 17 9 9 12 Storage 9 | . 13 11 11 11 7 Processor 1 | . . 3 2 . . Protection 14 | . 1 12 20 23 13 Ballistic Gun 2 | . 3 . . . 5 Ballistic Cannon 18 | . 6 21 21 22 17 Peak Build Rating 41 | 9 11 23 23 22 41 Average Rating 25 | 4 8 21 21 21 36 On Entrance 14 | . 9 10 23 22 22 Avg Prop Armor Cover (%) . | . . . . . . Naked Turns . | . . . . . . Heaviest Build 87 | 10 36 45 52 52 87 Greatest Support 64 | 40 40 44 50 50 64 Greatest Overweight (x) 18 | . 10 1 1 1 18 Average Overweight (x) . | . . . . . . Largest Inventory Capacity 15 | 5 15 15 15 15 15 Average Capacity 14 | 5 14 15 15 15 14 Most Carried 15 | 5 15 15 15 15 15 Average Carried 13 | 3 9 13 14 14 13 Final Capacity 15 | 5 15 15 15 15 5 Final Carried 15 | 5 11 14 14 15 5 Class Distribution -------------------- 67% | Mutant 22% | Tank 8% | Scavenger-Tank Dominant Class ---------------- Mutant | -10/Materials Mutant | -9/Materials Mutant | -9/Storage Mutant | -9/Recycling Tank | -7/Factory Resources | -11 -10 -9 -9 -9 -7 ----------- Run | Yrd Mat Mat Sto Rec Fac Matter Collected 4142 | 248 213 1236 941 229 1275 Remotely . | . . . . . . Salvage Created 4443 | 89 550 1532 799 262 1211 Parts 245 | 7 30 91 49 6 62 Haulers Intercepted 14 | . 1 4 5 . 4 Recyclers Shooed 2 | . . . . . 2 Parts Field Recycled 82 | . . 12 20 . 50 Retrieved Matter 564 | . . 42 95 . 427 Parts Self-Destructed . | . . . . . . Prevented . | . . . . . . Parts Restored . | . . . . . . Kills | -11 -10 -9 -9 -9 -7 ------- Run | Yrd Mat Mat Sto Rec Fac Combat Hostiles Destroyed 104 | . 13 40 22 3 26 Guns 10 | . 3 . . . 7 Cannons 91 | . 9 40 22 3 17 AOE 2 | . . . . . 2 Classes Destroyed 14 | 2 5 3 1 . 3 Worker 2 | . . . 1 . 1 Builder 4 | . 1 1 1 . 1 Tunneler 1 | 1 . . . . . Hauler 14 | . 1 4 5 . 4 Recycler 6 | 1 . 2 . 2 1 Operator 1 | . . 1 . . . Watcher 11 | . 2 5 2 . 2 Swarmer 10 | . 3 . 7 . . Grunt 53 | . 10 29 8 . 6 Brawler 1 | . . . . . 1 Duelist 2 | . . 1 . . 1 Sentry 23 | . . 10 7 3 3 Hunter 6 | . . . . . 6 Programmer 9 | . . . . . 9 Best Kill Streak 9 | 1 3 8 9 2 3 Combat Bots Only 9 | . 3 6 9 2 3 Max Kills in Single Turn 2 | 1 2 1 2 1 2 Gunslinging . | . . . . . . Exploded 2 | . . . . . 2 Melee . | . . . . . . Uniques/NPCs Destroyed . | . . . . . . Combat | -11 -10 -9 -9 -9 -7 -------- Run | Yrd Mat Mat Sto Rec Fac Hostile Shots Fired 602 | . 49 128 85 12 328 Missed 165 | . 10 39 16 4 96 Hits 437 | . 39 89 69 8 232 Melee 7 | . . 1 . . 6 Projectile 430 | . 39 88 69 8 226 Critical Strikes 11 | . . 1 1 . 9 Actively Blocked 2 | . . 1 . . 1 Part Disruptions 1 | . . . . . 1 Damage Taken 6153 | . 534 953 999 123 3544 Core 1007 | . 86 115 91 . 715 Absorbed by Shields 329 | . . 169 . . 160 Redirected to Shielding 205 | . . 49 44 . 112 Ignored by Resistances 10 | . . . . . 10 Regen/Repaired (Parts) 454 | . . 196 147 . 111 Core Remaining (%) 71 | 100 65 . . 48 . Volleys Fired 394 | 7 53 110 98 9 117 Largest 3 | 2 2 2 2 2 3 Hottest 110 | 70 110 66 100 66 106 Shots Fired 863 | 14 106 219 184 21 319 Gun 165 | 14 51 . . . 100 Cannon 685 | . 55 219 171 21 219 Launcher . | . . . . . . Special 13 | . . . 13 . . Kinetic 771 | 7 34 219 171 21 319 Thermal 92 | 7 72 . 13 . . Explosive . | . . . . . . Electromagnetic . | . . . . . . Robot Hit Streak 17 | 4 5 15 17 8 10 Robot Miss Streak 5 | 4 4 5 3 1 5 Penetration Max 1 | . . . . . 1 Secondary Targets . | . . . . . . Shots Hit Robots 498 | 7 51 143 90 11 196 Core Hits 197 | 4 24 63 31 6 69 Critical Kills . | . . . . . . Critical Parts Destroyed 3 | . 1 . . . 2 Critical Strikes 26 | 1 3 7 5 . 10 Burn 3 | 1 2 . . . . Destroy 3 | . 1 . . . 2 Blast 20 | . . 7 5 . 8 Melee Attacks . | . . . . . . Impact . | . . . . . . Slashing . | . . . . . . Piercing . | . . . . . . Sneak Attacks . | . . . . . . Combat Hostiles . | . . . . . . Follow-up Attacks . | . . . . . . Damage Inflicted 10520 | 84 759 3123 1895 210 4449 Guns 1712 | 84 307 . . . 1321 Cannons 8393 | . 439 3035 1842 204 2873 Explosions 205 | . . . . . 205 Melee . | . . . . . . Ramming 210 | . 13 88 53 6 50 Kinetic 9490 | 19 196 3035 1842 204 4194 Thermal 615 | 65 550 . . . . Explosive 205 | . . . . . 205 Electromagnetic . | . . . . . . Impact . | . . . . . . Slashing . | . . . . . . Piercing . | . . . . . . Highest Corruption 7 | . . 3 7 7 2 Average Corruption 3 | . . 3 4 7 1 Corruption Purged . | . . . . . . Corruption Blocked . | . . . . . . Effects 195 | . . 54 62 66 13 Message Errors 52 | . . 8 24 17 3 Matter Fused 55 | . . 15 12 24 4 Heat Flow Errors 21 | . . 7 5 6 3 Energy Discharges 20 | . . 11 2 6 1 Parts Rejected 3 | . . . 2 . 1 Data Loss (minor) 17 | . . 6 4 6 1 Data Loss (major) 11 | . . 4 3 4 . Misfires 11 | . . 1 7 3 . Alerts 1 | . . . 1 . . Weapon Failures 4 | . . 2 2 . . Overload Shots . | . . . . . . Overflow Damage 114 | . . 12 32 . 70 Projectiles 80 | . . 12 32 . 36 Explosions 34 | . . . . . 34 Melee . | . . . . . . Knockbacks 55 | . . 25 11 . 19 Impact 1 | . . . 1 . . Kinetic 54 | . . 25 10 . 19 Secondary . | . . . . . . Self-Inflicted Damage 335 | . . . . . 335 Shots 5 | . . . . . 5 Rammed 32 | . 1 16 8 1 6 Targets Rammed 37 | . 4 17 8 1 7 Kicked 3 | . 3 . . . . Crushed 2 | . . 1 . . 1 Highest Temperature 603 | 70 387 274 330 255 603 Average Temperature 112 | 32 103 55 81 79 143 Received Heat Transfer 1485 | . 246 424 285 36 494 Effects 59 | . 1 . . . 58 Shutdowns 15 | . 1 . . . 14 Energy Bleed 8 | . . . . . 8 Interference 15 | . . . . . 15 Matter Decay 6 | . . . . . 6 Short Circuit 3 | . . . . . 3 Damage (minor) 3 | . . . . . 3 Damage (major) 6 | . . . . . 6 Damage (core) 3 | . . . . . 3 Siege Activations . | . . . . . . Martial Activations . | . . . . . . Shielding Activations . | . . . . . . Robots Disrupted . | . . . . . . Combat Hostiles . | . . . . . . Robots Corrupted . | . . . . . . Combat Hostiles . | . . . . . . Parts Fried . | . . . . . . Impact Corruptions . | . . . . . . Robots Melted 1 | . 1 . . . . Combat Hostiles 1 | . 1 . . . . Parts Melted 1 | . 1 . . . . Heat Transferred 1776 | 259 1517 . . . . Parts Sabotaged . | . . . . . . Parts Stolen . | . . . . . . Parts Stripped . | . . . . . . Power Chain Reactions . | . . . . . . Alert | -11 -10 -9 -9 -9 -7 ------- Run | Yrd Mat Mat Sto Rec Fac Maximum Alert Level 2 | . . 2 2 . 2 Low Security (%) 56 | 100 100 28 8 100 73 Level 1 29 | . . 35 78 . 17 Level 2 14 | . . 35 12 . 9 Level 3 . | . . . . . . Level 4 . | . . . . . . Level 5 . | . . . . . . High Security . | . . . . . . Max Security . | . . . . . . Peak Influence 576 | 5 177 535 513 84 576 Initial 224 | . . 59 224 84 . Average 178 | . 55 305 273 5 132 Influence Increases 3662 | 10 462 1172 869 106 1043 Destroy 0b10 Robot/C 2080 | . 260 800 440 60 520 Destroy 0b10 Robot/NC 210 | 10 20 65 55 10 50 Destroy Leader 660 | . 66 238 144 . 212 Successful Hack 70 | . 9 7 19 20 15 Disable Machine 345 | . 60 45 90 15 135 Destroy Structure 132 | . 2 17 16 1 96 Lose Combat Pursuer 165 | . 45 . 105 . 15 Influence Decreases 3106 | 10 321 782 1183 323 487 Entered New Map 522 | . . 82 307 133 . Time Decay 2194 | 10 311 690 686 190 307 Lost Part 240 | . 10 10 40 . 180 Purge Threat 150 | . . . 150 . . Squads Dispatched 32 | . 3 6 5 . 18 Investigation 12 | . 2 4 1 . 5 Extermination 9 | . . . . . 9 Reinforcement 6 | . 1 2 1 . 2 Assault 1 | . . . . . 1 Garrison 4 | . . . 3 . 1 Intercept . | . . . . . . Searches Triggered . | . . . . . . Construction Impeded 2 | . . . 1 . 1 Haulers Reinforced 1 | . . . . . 1 Active Scanning Responses . | . . . . . . Cargo Convoy Interrupts . | . . . . . . Stealth | -11 -10 -9 -9 -9 -7 --------- Run | Yrd Mat Mat Sto Rec Fac Distress Signals 6 | . 1 2 2 . 1 Communications Jammed . | . . . . . . Distress Signals . | . . . . . . Times Spotted 151 | . 26 52 32 2 39 Peak Tracking Total 6 | . 4 3 6 2 5 Tactical Retreats 6 | . 2 . 3 . 1 Traps | -11 -10 -9 -9 -9 -7 ------- Run | Yrd Mat Mat Sto Rec Fac Traps Triggered 6 | . 2 . 1 . 3 Indirectly . | . . . . . . Trap Hack Attempts . | . . . . . . Triggered . | . . . . . . Disarmed . | . . . . . . Reprogrammed . | . . . . . . Reused . | . . . . . . Traps Extracted . | . . . . . . Installed . | . . . . . . Triggered . | . . . . . . Machines | -11 -10 -9 -9 -9 -7 ---------- Run | Yrd Mat Mat Sto Rec Fac Machines Disabled 23 | . 4 3 6 1 9 Max in Single Turn 5 | . 2 1 1 1 5 Garrison Access 1 | . . . . . 1 Machines Repaired . | . . . . . . Machines Dismantled 1 | . . . 1 . . Machines Sabotaged . | . . . . . . Overloaded Fab Kills . | . . . . . . Hacking | -11 -10 -9 -9 -9 -7 --------- Run | Yrd Mat Mat Sto Rec Fac Machines Accessed 37 | . 3 15 5 6 8 Terminals 19 | . 3 9 2 3 2 Fabricators 1 | . . . . . 1 Repair Stations 5 | . . 2 1 . 2 Recycling Units 7 | . . 2 1 2 2 Scanalyzers 2 | . . 2 . . . Garrison Access 2 | . . . 1 . 1 Total Hacks 116 | . 8 43 14 28 23 Successful 73 | . 3 24 10 24 12 Failed 43 | . 5 19 4 4 11 Catastrophic 11 | . 1 7 . . 3 Database Lockouts . | . . . . . . Manual 14 | . 1 8 1 4 . Terminals 46 | . 8 20 7 6 5 Fabricators 1 | . . . . . 1 Repair Stations 25 | . . 13 3 . 9 Recycling Units 13 | . . 3 1 3 6 Scanalyzers 7 | . . 7 . . . Garrison Access 5 | . . . 3 . 2 Terminal Hacks 40 | . 3 7 5 22 3 Record 22 | . . . . 20 2 Prototype ID Bank 2 | . . 1 1 . . Open DSF 1 | . . . . . 1 Emergency Access Points 2 | . . 1 1 . . Alert Level 4 | . . 2 1 1 . Unreport Threat 1 | . . . 1 . . Locate Traps 3 | . 1 2 . . . Recall Investigation 1 | . 1 . . . . Zone Layout 4 | . 1 1 1 1 . Fabricator Hacks . | . . . . . . Repair Station Hacks 17 | . . 8 3 . 6 Scan Component 10 | . . 4 2 . 4 Repair 7 | . . 4 1 . 2 Recycling Unit Hacks 7 | . . 2 1 2 2 Process 1 | . . . . . 1 Report Inventory 6 | . . 2 1 2 1 Scanalyzer 7 | . . 7 . . . Insert Component 1 | . . 1 . . . Analyze 2 | . . 2 . . . Retrieve Study 4 | . . 4 . . . Garrison Access Hacks 2 | . . . 1 . 1 Unlock Access 1 | . . . 1 . . Seal Access 1 | . . . . . 1 Unauthorized Hacks . | . . . . . . Terminals . | . . . . . . Fabricators . | . . . . . . Repair Stations . | . . . . . . Recycling Units . | . . . . . . Scanalyzers . | . . . . . . Garrison Access . | . . . . . . Data Cores Recovered . | . . . . . . Used . | . . . . . . Hacking Detections 30 | . 3 13 4 2 8 Full Trace Events 11 | . 1 4 2 . 4 Feedback Events . | . . . . . . Feedback Blocked . | . . . . . . Robot Schematics Acquired . | . . . . . . Robots Built . | . . . . . . Authchips . | . . . . . . Time . | . . . . . . Total Robot Build Rating . | . . . . . . Part Schematics Acquired 1 | . . 1 . . . Parts Built . | . . . . . . Authchips . | . . . . . . Time . | . . . . . . Total Part Build Rating . | . . . . . . Part Studies Acquired 2 | . . 2 . . . Parts Repaired 6 | . . 3 1 . 2 Time 243 | . . 147 38 . 58 Parts Recycled . | . . . . . . Recycled Matter 457 | . . . . . 457 Retrieved Matter . | . . . . . . Retrieved Components . | . . . . . . Parts Scanalyzed 1 | . . 1 . . . Part Schematics Acquired 1 | . . 1 . . . Parts Damaged . | . . . . . . Bothacking | -11 -10 -9 -9 -9 -7 ------------ Run | Yrd Mat Mat Sto Rec Fac Used RIF Installer . | . . . . . . Robots Hacked . | . . . . . . Non-combat . | . . . . . . Combat . | . . . . . . Robot Hacks Applied . | . . . . . . Relay Couplers Released . | . . . . . . Fabnet Peak Effective % . | . . . . . . Robots Rewired . | . . . . . . Allies Hacked . | . . . . . . Hacks Repelled . | . . . . . . Allies | -11 -10 -9 -9 -9 -7 -------- Run | Yrd Mat Mat Sto Rec Fac Total Allies . | . . . . . . Largest Group . | . . . . . . Highest-Rated Group . | . . . . . . Highest-Rated Ally . | . . . . . . Total Orders . | . . . . . . Ally Attacks . | . . . . . . Total Damage . | . . . . . . Kills . | . . . . . . Allies Corrupted . | . . . . . . Allies Melted . | . . . . . . Intel | -11 -10 -9 -9 -9 -7 ------- Run | Yrd Mat Mat Sto Rec Fac Active Infowar (turns) 493 | 31 462 . . . . Terrain 41 | 25 16 . . . . Seismic 493 | 31 462 . . . . Robot Analysis Total . | . . . . . . Derelict Logs Recovered . | . . . . . . Drone Launches . | . . . . . . Drone Recoveries . | . . . . . . Exploration | -11 -10 -9 -9 -9 -7 ------------- Run | Yrd Mat Mat Sto Rec Fac Turns Passed 15447 | 137 1309 3955 2740 1965 5341 Spaces Moved 6673 | 69 620 2111 947 847 2079 Core 11 | 8 1 . . . 2 Treads 6209 | 56 252 2030 947 847 2077 Legs 451 | 3 367 81 . . . Wheels 2 | 2 . . . . . Hover . | . . . . . . Flight . | . . . . . . Fastest Speed 50 | 50 160 145 145 145 150 Average Speed 186 | 143 178 160 194 223 197 Slowest Speed 950 | 160 550 240 232 225 950 Overloaded Moves . | . . . . . . Propulsion Burnouts . | . . . . . . Robots Hopped . | . . . . . . Potential Cave-ins . | . . . . . . Cave-ins Triggered 1 | . . . 1 . . Exploration Rate (%) 59 | 5 84 94 54 93 24 Regions Visited 5 Branch Regions 2 Pre-discovered Areas . | . . . . . . Known Exits Taken 1 | . . 1 . . . Unknown Exits Taken 4 | 1 1 . 1 1 . Scrap Searched . | . . . . . . Spaces Dug 8 | . . . 8 . . Terrain Destroyed 113 | . . 9 11 . 93 Melee . | . . . . . . Projectile 36 | . . 9 11 . 16 AOE 77 | . . . . . 77 Terrain Rammed . | . . . . . . Walls Destroyed . | . . . . . . Machines Disabled . | . . . . . . Actions | -11 -10 -9 -9 -9 -7 --------- Run | Yrd Mat Mat Sto Rec Fac Total 8819 | 91 719 2449 1613 902 3045 Wait 1429 | . 4 141 502 31 751 Move 6668 | 68 619 2110 946 846 2079 Hop . | . . . . . . Pick Up 38 | 1 8 13 6 4 6 Fast Attach 61 | 11 7 11 6 1 25 Attach 29 | . 2 8 5 1 13 Detach 27 | 4 7 8 3 . 5 Swap 61 | . 4 10 18 3 26 Drop 65 | . 11 21 12 5 16 Fire 394 | 7 53 110 98 9 117 Melee . | . . . . . . Ram . | . . . . . . Kick 3 | . 3 . . . . Crush 34 | . 1 17 8 1 7 Escape Stasis . | . . . . . . Rewire 1 | . . . . 1 . Trap . | . . . . . . Miscellaneous 9 | . . . 9 . . Route ------- -11/Scrapyard -10/Materials (discovered 3 exits: *Mat x2 / [*Min]) -9/Materials (discovered 7 exits: *Mat x3 / *Min x2 / *Sto x2) -9/Storage (discovered 2 exits: *Rec / Gar) -9/Recycling (discovered 2 exits: *Fac / [*Scr]) -7/Factory History --------- Turn | Location | Event 8 | -11/Scrapyard | Discovered new exit (range 16) 138 | -11/Scrapyard | Entered Materials 314 | -10/Materials | Build established: Mutant 379 | -10/Materials | Discovered new exit (range 8) 1233 | -10/Materials | Discovered new exit (range 8) 1391 | -10/Materials | Discovered new exit (range 10) 1447 | -10/Materials | Entered another Materials area 1447 | -9/Materials | Evolved 2 slots: Utility x2 2245 | -9/Materials | Discovered new exit (range 10) 2267 | -9/Materials | Discovered new exit (range 15) 2640 | -9/Materials | Discovered new exit (range 11) 2864 | -9/Materials | Discovered new exit (range 16) 3403 | -9/Materials | Discovered new exit (range 16) 3477 | -9/Materials | Repaired Imp. Light Cannon+ 3967 | -9/Materials | Discovered new exit (range 9) 4107 | -9/Materials | Discovered new exit (range 10) 4262 | -9/Materials | Identified exit to Materials 4410 | -9/Materials | Identified exit to Storage 5037 | -9/Materials | Identified exit to Mines 5302 | -9/Materials | Repaired Lgt. Armor Plating 5354 | -9/Materials | Repaired Hvy. Ion Engine 5402 | -9/Materials | Entered Storage 5602 | -9/Storage | Identified exit to Garrison 5721 | -9/Storage | Garrison activated, responded to threat 5785 | -9/Storage | Destroyed 9 combat bots 6163 | -9/Storage | Repaired Adv. Treads 7200 | -9/Storage | Crushed by falling debris 7309 | -9/Storage | Core integrity fell below 50% 8133 | -9/Storage | Discovered new exit (range 3) 8142 | -9/Storage | Entered Recycling 9573 | -9/Recycling | Scanned before Scraplab entrance 9607 | -9/Recycling | Entered Scraplab 9645 | -9/Recycling | Discovered new exit (range 3) 10075 | -9/Recycling | Discovered new exit (range 9) 10107 | -9/Recycling | Entered Factory 10107 | -7/Factory | Evolved 4 slots: Power x1, Propulsion x1, Utility x1, Weapon x1 10187 | -7/Factory | Repaired Lgt. Armor Plating 10220 | -7/Factory | Repaired Hrd. Light Armor Plating 10423 | -7/Factory | Build established: Tank 12314 | -7/Factory | Garrison activated, responded to threat 12341 | -7/Factory | Core integrity fell below 50% 14387 | -7/Factory | Lost 3 parts (1n2u) 14442 | -7/Factory | Build established: Scavenger-Tank 14947 | -7/Factory | Core integrity fell below 20% 14979 | -7/Factory | Lost 3 parts (2u1w) 15228 | -7/Factory | Lost 4 parts (2p2u) 15307 | -7/Factory | First assault squad dispatched 15448 | -7/Factory | Destroyed by L-41 Fighter with Axe Last Messages --------------- 15424_ Slammed into R-06 Scavenger. 15439_ C-45 Heavy ARC bursts open, deploying its payload. 15439_ G-50 Soldier unfolds itself. 15439_ L-41 Fighter unfolds itself. 15439_ G-47 Trooper unfolds itself. 15439_ I-36 Angel unfolds itself. 15440_ Slug penetrates Wall. 15440_ Slug penetrates G-47 Trooper. 15443_ Slug penetrates Wall. 15443_ G-47 Trooper suffers critical hit (Destroy). 15443_ Destroyed Imp. Heat Sink. 15444_ System corrupted: Matter fused (-9). 15444_ Critical hit (Burn: +37). 15447_ Slug penetrates Wall. 15447_ Slug penetrates L-41 Fighter. 15447_ L-41 Fighter knocked back. 15447_ Lrg. Storage Unit destroyed. 15448_ Gauss Rifle destroyed. Map ----- +----------------------------------------------------+ | ?????????????????????????????????????????????????? | | ?????????????????????????????????????????????????? | | ?????????????????????????????????????????????????? | | ?????????????????????????????????????????????????? | | ?+###?#??????????????????????????????????????????? | | # ?????????????????????????????????????????? | | # " " " ?????????????????????????????????????????? | | # " " " #????????????????????????????????????????? | | # " " " #????????????????????????????????????????? | | # " " " #????????????????????????????????????????? | | # " " " #????????????????????????????????????????? | | # " " " #??????????????????????????#?????????????? | | # " " " #?????????????????????????? ????????????? | | # " " " #??????????????????????????# ????????????? | | # " "%" #??????????????????????????# ???????????? | | # % #????????????????????????#?# ###/???????? | | # #????????????????????????? # #####??? | | # #????????????????????????? / ??? | | ##############?????????????????????# ^ ^ #??? | | # #?????????????????????# """#??? | | / #?????????????????????# T"#??? | | # #?# ??????########## ^ """#??? | | # ### ""????+ """ #??? | | # ### i ??# """ #??? | | # ### % g #!| """ #### | | # ]# # !! g%*l@! | | # # # !! g #!* #### #### | | # ### ??# #??# ####### #??? | | # ############ #??# + + #??? | | # [! ## ! | # #??#+#### # #??? | | # =! ## / #???????# # #### | | #####+#+####### ### #???????# + | | ????# / #??####???????# """ ###### | | ????# #####" """ #?????????????# """ #????? | | ????# #####"" """"" #?????????????# """ #????? | | ????# #???#"" """"" #?????????????# #????? | | ????# #???#"" #?????????????# """ #????? | | ????# #???#"" """ #?????????????# """ #????? | | ##### #???#"T """"" #?????????????# """ #????? | | #???#"" """"" #?????????????# ? #????? | | #???#"" #################?###????? | | """ """ #???#"" """ #! = =#???????????? | | """ """ #???#"" """"" # ^ #???????????? | | """ """ #???#" """"" #] ^ ##??????????? | | """ #???# # """" """" ###########?? | | ##########+#### """" """" ## #?? | | """ """ + """" """" ## #?? | | """ """ # """" """" ## #?? | | """ """ + """" """"?## #?? | | """ # """" """" ## #?? | +----------------------------------------------------+ Best States ------------- Heat Dissipation 62 Energy Generation 24 Energy Capacity 460 Matter Stores 300 Matter Capacity 300 Sight Range 16 Terrain Scan Range 16 Terrain Scan Density 10 Additional Mass Support 6 Armor Coverage 975 Resistance: EM 20 Power Shielding 66 Propulsion Shielding 66 Weapon Shielding 33 Evasion (%) 50 Recoil Reduction 6 Matter Filtering 30 Kinecelleration 30 Item Schematics ----------------- Weapon Shielding | -9/Materials | Scanalyzed Robot Schematics ------------------ None Fabricated ------------ Nothing Repaired ---------- Imp. Light Cannon | 50% | -9/Materials Lgt. Armor Plating | 13% | -9/Materials Hvy. Ion Engine | 53% | -9/Materials Adv. Treads | 13% | -9/Storage Lgt. Armor Plating | 67% | -7/Factory Hrd. Light Armor Plating | 54% | -7/Factory Studied --------- Imp. Light Cannon | -9/Materials | Hacked EM Shotgun | -9/Materials | Hacked Alien Tech Used ----------------- None Achievements -------------- Party Time Throw Away The Key Challenges ------------ None Game ------ Seed SlugClaymoresCarapace Manual? 0 Play Time 01:49:11 Cumulative 23.6 hours Start 2026.01.24 @ 05:21:18 End 2026.01.24 @ 07:11:55 Sessions 1 Manual Loads 0 Difficulty Rogue Special Mode None Game No. 27 Rogue 27 Adventurer 0 Explorer 0 Win Type - Total 0 Types 0/0/0/0/0/0/0/0/0/0 Lore% 20 Gallery% 18 Achievement% 19 Wizard Run 0 Options --------- Layout 1 ASCII 0 Keyboard 0 Movement Arrows Keybinds 0 Fullscreen 2 Font 24/Crisp Map View 50x35 Zoom Use 0% Tactical HUD 1 Map Filters NONE Filters NONE Steam 1 RUN: ff516cf1-ddc0-4bb2-97e4-e7d19cb30778